Workbook

Sheet Cover Page
N2: Version 2.1 11/11/19
C9: BIOMASS UK NO1 LLP
B11: Annual Performance Report 2021
B13: Permit EPR/DP3932RS
B15: Hull Energy Production Facility
B17: Biomass UK No 1 LLP
B22: Year: | C22: 2021
B24: Address: | C24: King George Dock, The Port of Hull, Marfleet, Hull, HU9 5PS
B26: Tel: | C26: 01179 372 811
B28: Email: | C28: steve.butler@sol-environment.co.uk
B30: Prepared by: | C30: Steve Butler | F30: Position: | G30: Consultant
B32: Approved by: | C32: Randall Smith | F32: Position: | G32: Technical Manager
B34: Version: | C34: 1
B36: Issue Date: | C36: 2022-01-27

Sheet Contents
A1: =+'Cover Page'!$B$11 -> Annual Performance Report 2021 | E1: =+'Cover Page'!$B$15 -> Hull Energy Production Facility
A3: Contents
A4: Section | B4: Subject | H4: Page
B5: Facility Information
B6: Operational Summary
B7: Operational Data
B8: Performance Form 1 & WU/RM1
B9: Energy Form 1
B10: Permit Compliance
B11: Improvements
B12: Form R1
B13: Permit EPR/DP3932RS
B14: Emissions to Water
B15: Emissions to Air (periodically monitored)
B16: Emissions to Air (continuously monitored)
B17: Hydrogen Chloride emissions
B18: Hydrogen Fluoride emissions
B19: Sulphur Dioxide emissions
B20: Oxides of Nitrogen emissions
B21: Total Organic Carbon emissions
B22: Particulate Matter emissions
B23: Carbon Monoxide emissions
B24: Ammonia emissions
A26: Version Control
A27: Section | B27: Information | H27: Date
A34: Distribution
A35: Copy | B35: Name, Role | H35: No.
A44: This report is required under the Industrial Emissions Directive’s Article 55(2) requirements on reporting and public information on waste incineration plants and co-incineration plants, which require the operator to produce an annual report on the functioning and monitoring of the plant and make it available to the public.

Sheet Facility Info
A1: =+'Cover Page'!$B$11 -> Annual Performance Report 2021 | E1: =+'Cover Page'!$B$15 -> Hull Energy Production Facility
A3: Plant Description and Design
A5: The Hull Energy Production Facility is a renewable energy generation facility which has been designed to recover energy from pre-prepared mixed waste wood feedstocks using gasification. The gasification facility is an Advanced Thermal Treatment (ATT) process that will produce a combustible synthesis gas, which is then used to raise steam and generate electricity, through steam cycle turbine generation. The Advanced Thermal Treatment (ATT) plant is designed to process shredded mixed waste wood feedstocks to produce heat to raise steam in a conventional tube boiler for utilisation in a steam turbine for the production of renewable electricity with an export capacity up to 10MWe. The Installation has been designed to process approximately 86,400 tonnes of pre-processed non-hazardous mixed waste wood per annum.
A20: Summary of Operational Processes and Procedures
A22: The principle components of the process comprise the following: Waste Acceptance and Reception: All waste wood is delivered directly into the fuel storage building via electrically operated roller shutter doors. When required, the waste is discharged onto the feedstock feed system, which delivers the waste into the gasification building. All waste is accepted in accordance to the sites waste acceptance procedures. Gasification: The feedstock feed system delivers the waste into the fluidised bed gasification system where the waste is combusted to produce a synthetic gas (syngas). The syngas is then combusted to produce a high temperature flue-gas. A steam boiler then recovers the heat from the combustion gases through the conversion into superheated steam. Electricity Generation: The superheated steam then passes to a Steam Turbine and Generator, which will export 10MWe (net) of renewable electricity onto the Local Distribution Network. Flue-Gas Cleaning: Flue gas cleaning and pollution control consists of urea injection for De-NOx, lime injection for acid gas neutralisation and activated carbon powder injection for absorption and removal of heavy metals, dioxins, VOCs and other harmful substances. The stream has a baghouse system, which is designed to have the capacity to remove submicron dust particles within anticipated emission limit values (ELV’s) stipulated by Chapter IV of the Industrial Emissions Directive (IED). The plant is operated in accordance with its Environmental Management System which is designed to meet the requirements of ISO14001:2004.

Sheet Operational Summary
A1: =+'Cover Page'!$B$11 -> Annual Performance Report 2021 | E1: =+'Cover Page'!$B$15 -> Hull Energy Production Facility
A3: Summary of Plant Operations and Maintenance during the reporting year
A5: During 2021 the facility has predominantly been shut down to enable a series of engineering modifications to the gasifier to improve operational reliability and performance. The plant has processed approximately 10,500 tonnes during 2022 and has typically run at less the 15% capacity. The plant is currently yet to complete performance testing which will include the final noise emission, QAL 2 and residence time confirmation tests.

Sheet Operational Data
A1: =+'Cover Page'!$B$11 -> Annual Performance Report 2021 | E1: =+'Cover Page'!$B$15 -> Hull Energy Production Facility
A3: Operational Data
A4: Plant Size | B4: 86400 | D4: tonnes pa | F4: MWth | G4: 10 | H4: MWe
A5: No. of combustion lines | B5: 1 | D5: No. of Turbines: | F5: 1
A7: Total waste received | B7: Unit | C7: Q1 | D7: Q2 | E7: Q3 | F7: Q4 | G7: Year Total
A8: Waste wood (biomass) | B8: Tonnes | G8: 10485
A9: Total waste wood co-incinerated | C9: 0 | E9: 0 | G9: 10485
A11: Energy Usage / Export | B11: Unit | C11: Q1 | D11: Q2 | E11: Q3 | F11: Q4 | G11: Year Total | H11: KWh/tonne incinerated
A12: Electrical Energy Generated | B12: KWh | C12: 0 | E12: 0 | G12: 9930 | H12: =G12/G9 -> 0.9470672389
A13: Electrical Energy Exported | C13: 0 | E13: 0 | G13: 9326 | H13: =G13/G9 -> 0.889461135
A14: Electrical Energy Used on site | C14: 0 | E14: 0 | G14: 2579 | H14: =G14/G9 -> 0.245970434
A15: Power Imported | C15: 0 | E15: 0 | G15: 1975 | H15: =G15/G9 -> 0.18836433
A16: Parasitic Load | B16: % | C16: =IF(C12>0,1-C13/(C12+C15),"-") -> - | D16: =IF(D12>0,1-D13/(D12+D15),"-") -> - | E16: - | F16: - | G16: 0.2166316674
A17: Thermal Energy Produced | B17: KWh | C17: 0 | E17: 0 | G17: 0 | H17: =IF(G17>0,G17*1000/$G$9,"-") -> -
A18: Thermal Energy Used on site | C18: 0 | E18: 0 | G18: =SUM(C18:F18) -> 0 | H18: -
A20: Waste Disposal & Recovery | B20: Unit | C20: Q1 | D20: Q2 | E20: Q3 | F20: Q4 | G20: Year Total | H20: kg/tonne of waste co-incinerated
A21: APC Residues - produced | B21: tonnes | C21: 0 | G21: 288 | H21: =G21/G9 -> 0.02746781116
A22: Bottom Ash - produced | C22: 0 | D22: 0 | E22: 0 | F22: 0 | G22: 108 | H22: =G22/G9 -> 0.01030042918
A23: Other solid wastes produced | C23: 0 | D23: 0 | E23: 0 | F23: 0 | G23: =SUM(C23:F23) -> 0 | H23: =G23/G9 -> 0
A25: Raw Material Usage | B25: Unit | C25: Q1 | D25: Q2 | E25: Q3 | F25: Q4 | G25: Year Total | H25: kg/tonne of waste co-incinerated
A26: Water Consumption | B26: m3 | C26: 0 | E26: 0 | G26: 4853 | H26: =G26/G9 -> 0.4628516929
A27: Urea Consumption | B27: kg | C27: 0 | D27: 0 | E27: 0 | F27: 0 | G27: 39 | H27: =G27/G9 -> 0.003719599428
A28: Activated Carbon Consumption | B28: kg | C28: 0 | D28: 0 | E28: 0 | F28: 0 | G28: 0 | H28: =G28/G9 -> 0
A29: Lime Consumption | B29: kg | C29: 0 | E29: 0 | G29: 121 | H29: =G29/G9 -> 0.01154029566
A30: Fuel oil Consumption | B30: kg | C30: 0 | E30: 0 | G30: 876483 | H30: =G30/G9 -> 83.59399142
A32: Summary of Hours | B32: Line/Unit | C32: Q1 | D32: Q2 | E32: Q3 | F32: Q4 | G32: Year Total
A33: Hours of waste combustion, total | C33: 0 | D33: 0 | E33: 0 | G33: =SUM(C33:F33) -> 0
A34: Hours of turbine operations, total | C34: 0 | D34: 0 | E34: 0 | G34: 0
A35: Hours of heat / steam export | C35: 0 | D35: 0 | E35: 0 | F35: 0 | G35: 0 | H35: N/A
A36: Abnormal Events | B36: qty. | C36: 0 | D36: 0 | E36: 0 | F36: 0 | G36: 0
A37: Abnormal operation | B37: hours | C37: 0 | D37: 0 | E37: 0 | F37: 0 | G37: 0
A38: Permit Breaches | B38: qty. | C38: 0 | D38: 0 | E38: 0 | F38: 0 | G38: 0

Sheet Perf. Form 1
A1: =+'Cover Page'!C22 -> 2021 | B1: Annual Reporting Performance Form 1
A3: =+'Cover Page'!B13 -> Permit EPR/DP3932RS | F3: Operator: | G3: ='Cover Page'!B17 -> Biomass UK No 1 LLP
A4: Facility: | B4: =+'Cover Page'!B15:I15 -> Hull Energy Production Facility | F4: Form: | G4: Performance 1 & WU/RM1
A7: Reporting of Water and Other Raw Material Usage for the Period from: | F7: 2021-01-01 | H7: to: | I7: 2021-12-31
A9: Raw Material | C9: Usage | E9: Units | G9: Specific Usage | I9: Units
A10: Urea consumption | C10: =('Operational Data'!G27)/1000 -> 0.039 | E10: tonnes | G10: ='Operational Data'!H27 -> 0.003719599428 | I10: kg/tonne of waste co-incinerated
A11: Activated Carbon consumption | C11: ='Operational Data'!G28/1000 -> 0 | E11: tonnes | G11: ='Operational Data'!G28 -> 0 | I11: kg/tonne of waste co-incinerated
A12: Lime Consumption | C12: ='Operational Data'!G29/1000 -> 0.121 | E12: tonnes | G12: ='Operational Data'!H29 -> 0.01154029566 | I12: kg/tonne of waste co-incinerated
A13: Mains Water | C13: ='Operational Data'!G26 -> 4853 | E13: m3 | G13: ='Operational Data'!H26 -> 0.4628516929 | I13: m3/tonne of waste co-incinerated
A14: Total Water usage | C14: =C13 -> 4853 | E14: m3 | G14: =G13 -> 0.4628516929 | I14: m3/tonne of waste co-incinerated
A16: Operator’s comments :
A21: Reporting of other performance indicators for the period: | F21: 2021-01-01 | H21: to: | I21: 2021-12-31
A23: Parameter | C23: Result
A24: Number of periods of abnormal operation | C24: ='Operational Data'!G36 -> 0
A25: Cumulative hours of abnormal operation for this calendar year | C25: ='Operational Data'!G37 -> 0
A27: Operator’s comments :

Sheet Energy Form 1
A1: ='Cover Page'!C22 -> 2021 | B1: Annual Reporting of Energy Usage/Export
A3: ='Cover Page'!B13 -> Permit EPR/DP3932RS | F3: Operator: | G3: ='Cover Page'!B17 -> Biomass UK No 1 LLP
A5: Facility: | B5: ='Cover Page'!B15 -> Hull Energy Production Facility | F5: Form: | G5: Energy 1
A7: Reporting Period from: | D7: 2021-01-01 | F7: to: | G7: 2021-12-31
A9: Energy Source | D9: Primary Energy | F9: Unit | G9: Specific Usage (MWh/unit output)
A10: Electricity Produced | D10: =('Operational Data'!G12)/1000 -> 9.93 | F10: MWh
A11: Electricity Imported | D11: =('Operational Data'!G15)/1000 -> 1.975 | F11: MWh
A12: Electricity Exported | D12: =('Operational Data'!G13)/1000 -> 9.326 | F12: MWh
A13: Auxiliary fuel used | D13: =('Operational Data'!G30)/1000 -> 876.483 | F13: tonnes or m3
A14: Steam/hot water produced | D14: =('Operational Data'!G17)/1000 -> 0 | F14: MWh
A16: Operator’s comments :
A27: Signed: | G27: Date:

Sheet Permit Compliance
A1: =+'Cover Page'!$B$11 -> Annual Performance Report 2021 | E1: =+'Cover Page'!$B$15 -> Hull Energy Production Facility
A3: Summary of Permit Compliance
A5: Compliance with permit limits for continuously monitored pollutants
A7: The plant met its emission limits as shown in the table below:
A8: Substance | C8: Percentage time compliant during operation
C9: Half-hourly limit | F9: Daily limit
A10: Particulates | C10: 1 | F10: 1
A11: Oxides of nitrogen | C11: 1 | F11: 1
A12: Sulphur dioxide | C12: 1 | F12: 1
A13: Carbon monoxide | C13: 1 | F13: 1
A14: Total organic carbon | C14: 1 | F14: 1
A15: Hydrogen chloride | C15: 1 | F15: 10
A16: Hydrogen fluoride | C16: 1 | F16: 1
A17: Ammonia | C17: N/A | F17: 1
A19: Summary of any notifications or non-compliances under the permit
A20: Date | B20: Summary of notification or non-compliance | E20: Reason | H20: Measures taken to prevent reoccurrence
A21: Nil | B21: Nil
A27: Summary of any complaints received and actions to taken to resolve them.
A28: Date | B28: Summary of complaint | E28: Reason * | H28: Measures taken to prevent reoccurrence
B29: Nil | E29: Nil
E34: * including whether substantiated by the operator or the EA

Sheet Improvements
A1: =+'Cover Page'!$B$11 -> Annual Performance Report 2021 | E1: =+'Cover Page'!$B$15 -> Hull Energy Production Facility
A3: Summary of Plant Improvements
A5: Summary of any efficiency improvements that have been completed within the year.
A6: The installation of an OFGR fan, which improves cooling and reduces high temperatures in the hot gas path. These leads to improved thermal efficiency.
A16: Summary of any permit improvement conditions that have been completed within the year and the resulting environmental benefits.
A17: The addition of a new Scrubber spray water lance will reduce emissions mainly HCL. The addition of new SNCR nozzle injectors will improve and reduce NOX emissions.
A27: Summary of any changes to the plant or operating techniques which required a variation to the permit and a summary of the resulting environmental impact.
A28: A variation application was submitted to the EA in Q1 2020 to allow the acceptance, storage and processing of RDF in addition to biomass. This has changed the facility from a co-incinerator to an incinerator and resulted in a slight change to the emission limit values. In addition, the monitoring of hydrogen fluoride is now periodic rather than on a continuous basis.
A38: Summary of any other improvements made to the plant or planned to be made and a summary of the resulting environmental benefits.
A39: Further improvements include adjustments to the weigh belt instrument on the feed system to ensure an accurate measurement of actual feedstock incinerated is calculated.

Sheet Form R1 (Residues)
A1: ='Cover Page'!C22 -> 2021 | B1: Annual Reporting Form R1
A3: ='Cover Page'!B13 -> Permit EPR/DP3932RS | F3: Operator: | G3: ='Cover Page'!B17 -> Biomass UK No 1 LLP
A4: Facility: | B4: ='Cover Page'!B15 -> Hull Energy Production Facility | F4: Form: | G4: R1
A6: Reporting Period from: | D6: 2020-01-01 | F6: to: | G6: 2020-12-31
A8: =+A1 -> 2021 | B8: Annual Reporting of Waste Disposal and Recovery
A9: Waste Description | C9: Disposal Route(s) | E9: Disposal Tonnes | G9: Recovery Tonnes | I9: % / tonne of waste incinerated
A10: 1) Hazardous Wastes
A11: APC Residues | C11: D05 - Landfill | E11: 288 | I11: ='Operational Data'!H21 -> 0.02746781116
A12: IBA which is classified as hazardous waste | I12: =IF((E12+G12)>0,(E12+G12)/'[1]Operational Data'!$G$18, "-") -> -
I13: =IF((E13+G13)>0,(E13+G13)/'[1]Operational Data'!$G$18, "-") -> -
I14: =IF((E14+G14)>0,(E14+G14)/'[1]Operational Data'!$G$18, "-") -> -
A15: Total Hazardous Waste | E15: =SUM(E11:F14) -> 288 | G15: =SUM(G11:H14) -> 0 | I15: =I11 -> 0.02746781116
A17: 2) Non-Hazardous Wastes
A18: IBA | E18: 108 | I18: =E18/'Operational Data'!G9 -> 0.01030042918
A19: Other non-hazardous wastes
A21: Total Non-Hazardous Waste | E21: =SUM(E18:F20) -> 108 | G21: =SUM(G18:H20) -> 0 | I21: =E21/'Operational Data'!G12 -> 0.01087613293
A22: TOTAL WASTE | E22: =+E21+E15 -> 396 | G22: =+G21+G15 -> 0 | I22: =I15 -> 0.02746781116
A24: Operator’s comments :
A29: Signed: | G29: Date:

Sheet Residue Quality Form 1
A1: =+'Cover Page'!C22 -> 2021 | B1: Annual Reporting Residues Form 1
A3: =+'Cover Page'!B13 -> Permit EPR/DP3932RS | F3: Operator: | G3: ='Cover Page'!B17 -> Biomass UK No 1 LLP
A4: Facility: | B4: =+'Cover Page'!B15:I15 -> Hull Energy Production Facility | F4: Form: | G4: Residue 1
A6: Reporting of Residue Quality Period from: | D6: 2021-01-01 | F6: to: | G6: 2021-12-31
A8: Ash Composition (TOC/LOI)
B9: LOI (%) | C9: % Carbon (TOC) w/w | G9: * at least one of LOI or TOC to be reported
A10: Bottom Ash
A12: Ash Composition (Metals, Dioxins, etc.)
C13: Sb | D13: Cd | E13: Tl | F13: Hg | G13: Pb | H13: Cr | I13: Cu | J13: Mn | K13: Ni | L13: As | M13: Co | N13: V | O13: Zn | P13: Dioxin/furan | Q13: Dioxin / Furan | T13: Dioxin-like PCBS
C14: mg/kg | D14: mg/kg | E14: mg/kg | F14: mg/kg | G14: mg/kg | H14: mg/kg | I14: mg/kg | J14: mg/kg | K14: mg/kg | L14: mg/kg | M14: mg/kg | N14: mg/kg | O14: mg/kg | P14: I-TEQ ng/kg | Q14: WHO-TEQ ng/kg | T14: WHO-TEQ ng/kg
Q15: Humans/mammals | R15: Birds | S15: Fish | T15: Humans/mammals | U15: Birds | V15: Fish
A16: Bottom Ash (including boiler ash) | C16: 67 | D16: 13.5 | E16: <0.1 | F16: <0.1 | G16: 1800 | H16: 49 | I16: 1400 | J16: 2320 | K16: 250 | L16: 238 | M16: 30.3 | N16: 33.6 | O16: 6900 | P16: 864 | T16: 0.168 | U16: 0.0086 | V16: 0.599
A17: APC Residues | C17: 152.7 | D17: 14.5 | E17: <0.1 | F17: 0.9 | G17: 3374 | H17: 361.2 | I17: 1114 | J17: 1305 | K17: 42.3 | L17: 415.8 | M17: 11.4 | N17: 18.6 | O17: 5348 | P17: 26600 | T17: 58 | U17: 2.7 | V17: 92.8
A19: Reporting of Ash solubility Period from: | D19: 2020-01-01 | F19: to: | G19: 2020-12-31
A21: Ash solubility - total soluble fractions
B22: Total Soluble Fraction %
A23: Bottom Ash
A24: APC Residues
A26: Ash Solubility (Metals)
B27: Sb | C27: Cd | D27: Tl | E27: Hg | F27: Pb | G27: Cr | H27: Cu | I27: Mn | J27: Ni | K27: As | L27: Co | M27: V | N27: Zn
B28: mg/kg | C28: mg/kg | D28: mg/kg | E28: mg/kg | F28: mg/kg | G28: mg/kg | H28: mg/kg | I28: mg/kg | J28: mg/kg | K28: mg/kg | L28: mg/kg | M28: mg/kg | N28: mg/kg
A30: Bottom Ash (including boiler ash)
A31: APC Residues
A33: Operator’s comments :
A38: Signed: | G38: Date:

Sheet Water
A1: =+'Cover Page'!$B$11 -> Annual Performance Report 2021 | E1: =+'Cover Page'!$B$15 -> Hull Energy Production Facility
A3: Emissions to Water
A5: Summary of monitoring undertaken and compliance
A6: N/A
A13: Commentary on any specific events
A14: Date & Event | C14: Description
A22: Emissions to Water / Sewer
A23: Parameter | D23: Monitoring Frequency | G23: Limit | H23: Target | I23: Max. | J23: Average

Sheet Air (periodic)
A1: =+'Cover Page'!$B$11 -> Annual Performance Report 2021 | E1: =+'Cover Page'!$B$15 -> Hull Energy Production Facility
A3: Emissions to Air (periodically monitored)
A5: Summary of monitoring undertaken, standards used and compliance
A9: Results of emissions to air that are periodically monitored
A10: Substance | C10: Ref. Period | D10: Emission Limit Value | F10: Q1 | I10: Q2 | L10: Q3 | O10: Q4
F11: Result | G11: Date & Time | H11: Uncertainty | I11: Result | J11: Date & Time | K11: Uncertainty | L11: Result | M11: Date & Time | N11: Uncertainty | O11: Result | P11: Date & Time | Q11: Uncertainty
A12: Cd and Th and their compounds | C12: 30 min, max 8hrs | D12: 0.05 mg/m3
A13: Hg and its compounds | C13: 30 min, max 8hrs | D13: 0.05 mg/m3
A14: Sb, As, Pb, Cr, Co, Cu, Mn, Ni, V and their compounds | C14: 30 min, max 8hrs | D14: 0.5 mg/m3
A15: Dioxins & Furans (I-TEQ) | C15: 6-8hrs | D15: 0.1 ng/m3
A16: Dioxins & Furans (WHO-TEQ Humans / Mammals) | C16: 6-8hrs | D16: No limit applies
A17: Dioxins & Furans (WHO-TEQ Fish) | C17: 6-8hrs | D17: No limit applies
A18: Dioxins & Furans (WHO-TEQ Birds) | C18: 6-8hrs | D18: No limit applies
A19: PCBs (WHO-TEQ Humans / Mammals) | C19: 6-8hrs | D19: No limit applies
A20: PCBs (WHO-TEQ Fish) | C20: 6-8hrs | D20: No limit applies
A21: PCBs (WHO-TEQ Birds) | C21: 6-8hrs | D21: No limit applies
A22: Total PAHs | C22: 6-8hrs | D22: No limit applies
A23: Anthanthrene | C23: 6-8hrs | D23: No limit applies
A24: Benzo[a]anthracene | C24: 6-8hrs | D24: No limit applies
A25: Benzo[b]fluoranthene | C25: 6-8hrs | D25: No limit applies
A26: Benzo[k]fluoranthene | C26: 6-8hrs | D26: No limit applies
A27: Benzo[b]naph[2,1-d]thiopene | C27: 6-8hrs | D27: No limit applies
A28: Benzo[c]phenanthrene | C28: 6-8hrs | D28: No limit applies
A29: Benzo[ghi]perylene | C29: 6-8hrs | D29: No limit applies
A30: Benzo[a]pyrene | C30: 6-8hrs | D30: No limit applies
A31: Cholanthrene | C31: 6-8hrs | D31: No limit applies
A32: Chrysene | C32: 6-8hrs | D32: No limit applies
A33: Cyclopenta[c,d]pyrene | C33: 6-8hrs | D33: No limit applies
A34: Dibenzo[ah]anthracene | C34: 6-8hrs | D34: No limit applies
A35: Dibenzo[ai]pyrene | C35: 6-8hrs | D35: No limit applies
A36: Fluoranthene | C36: 6-8hrs | D36: No limit applies
A37: Indeno[1,2,3-cd]pyrene | C37: 6-8hrs | D37: No limit applies
A38: Naphthalene | C38: 6-8hrs | D38: No limit applies
A39: Comments :

Sheet Air (CEMS)
A1: =+'Cover Page'!$B$11 -> Annual Performance Report 2021 | E1: ='Cover Page'!B15 -> Hull Energy Production Facility
A3: Emissions to Air (continuously monitored)
A5: Summary of monitoring undertaken, standards used and compliance
A11: Results of emissions to air that are continuously monitored
A12: Substance | B12: Reference Period | C12: Emission Limit Value | D12: A1
D13: Max. | E13: Avg.
A14: Oxides of nitrogen | B14: Daily mean | C14: 300 mg/m3 | D14: 287 | E14: =NOx!N19 -> 
B15: ½ hourly mean | C15: 600 mg/m3 | D15: 287 | E15: =NOx!L19 -> 
A16: Particulates | B16: Daily mean | C16: 15 mg/m3 | D16: 2.21 | E16: =Particulates!N19 -> 
B17: ½ hourly mean | C17: 45 mg/m3 | D17: 2.21 | E17: =Particulates!L19 -> 
A18: Total Organic Carbon | B18: Daily mean | C18: 15 mg/m3 | D18: 0.99 | E18: =TOC!N19 -> 
B19: ½ hourly mean | C19: 30 mg/m3 | D19: 0.99 | E19: =TOC!L19 -> 
A20: Hydrogen chloride | B20: Daily mean | C20: 15 mg/m3 | D20: 3.69 | E20: =HCl!N19 -> 
B21: ½ hourly mean | C21: 90 mg/m3 | D21: 3.69 | E21: =HCl!L19 -> 
A22: Hydrogen fluoride | B22: Daily mean | C22: 6 mg/m3 | D22: 0.38 | E22: =HF!N19 -> 
B23: ½ hourly mean | C23: 1.5 mg/m3 | D23: 0.38 | E23: =HF!L19 -> 
A24: Sulphur dioxide | B24: Daily mean | C24: 75 mg/m3 | D24: 10.03 | E24: ='SO2'!N19 -> 
B25: ½ hourly mean | C25: 300 mg/m3 | D25: 10.03 | E25: ='SO2'!L19 -> 
A26: Carbon monoxide | B26: Daily mean | C26: 75 mg/m3 | D26: 34.42 | E26: ='CO '!N19 -> 
B27: ½ hourly mean | C27: 150 mg/m3 | D27: 34.42 | E27: ='CO '!L19 -> 
A28: Ammonia | B28: Daily mean | C28: 7.5 mg/m3 | D28: 0.92 | E28: ='NH3'!I19 -> 
A29: * = delete or amend as appropriate
A30: Comments :

Sheet HCl
A1: =+'Cover Page'!$B$11 -> Annual Performance Report 2021 | E1: =+'Cover Page'!$B$15 -> Hull Energy Production Facility
A3: Monitoring of Hydrogen Chloride emissions | D3: Whole Installation | J3: =+A3 -> Monitoring of Hydrogen Chloride emissions | N3: Per Combustion Line
A5: mg/Nm3 | B5: 1/2 Hourly Reference Periods | E5: Daily Reference Periods
A6: =+'Cover Page'!C22 -> 2021 | B6: 1/2 hourly HCl ELV | C6: Monthly 1/2 hourly mean | D6: Highest 1/2 hourly maximum | E6: Daily HCl ELV | F6: Monthly daily mean | G6: Highest daily maximum | J6: =+A6 -> 2021 | K6: mg/Nm3 | L6: Monthly 1/2 hourly mean | M6: Monthly 1/2 hourly maximum | N6: Monthly daily mean | O6: Monthly daily maximum
A7: Jan | B7: 90 | C7: =L7 -> - | D7: =M7 -> - | E7: 15 | F7: 0.84 | G7: =O7 -> - | J7: A1 | K7: Jan | L7: - | M7: - | N7: - | O7: -
A8: Feb | B8: 90 | C8: =L8 -> - | D8: =M8 -> - | E8: 15 | F8: 0.48 | G8: =O8 -> - | K8: Feb | L8: - | M8: - | N8: - | O8: -
A9: Mar | B9: 90 | C9: - | D9: - | E9: 15 | F9: 1.29 | G9: - | K9: Mar | L9: - | M9: - | N9: - | O9: -
A10: Apr | B10: 90 | C10: - | D10: - | E10: 15 | F10: N/A | G10: - | K10: Apr | L10: - | M10: - | N10: - | O10: -
A11: May | B11: 90 | C11: - | D11: - | E11: 15 | F11: N/A | G11: - | K11: May | L11: - | M11: - | N11: - | O11: -
A12: Jun | B12: 90 | C12: - | D12: - | E12: 15 | F12: 2.61 | G12: - | K12: Jun | L12: - | M12: - | N12: - | O12: -
A13: Jul | B13: Permit EPR/DP3932RS | C13: - | D13: - | E13: 15 | F13: 3.69 | G13: - | K13: Jul | L13: - | M13: - | N13: - | O13: -
A14: Aug | B14: 90 | C14: - | D14: - | E14: 15 | F14: 2.39 | G14: - | K14: Aug | L14: - | M14: - | N14: - | O14: -
A15: Sep | B15: 90 | C15: - | D15: - | E15: 15 | F15: 2.68 | G15: - | K15: Sep | L15: - | M15: - | N15: - | O15: -
A16: Oct | B16: 90 | C16: - | D16: - | E16: 15 | F16: 1.5 | G16: - | K16: Oct | L16: - | M16: - | N16: - | O16: -
A17: Nov | B17: 90 | C17: - | D17: - | E17: 15 | F17: N/A | G17: - | K17: Nov | L17: - | M17: - | N17: - | O17: -
A18: Dec | B18: 90 | C18: - | D18: - | E18: 15 | F18: N/A | G18: - | K18: Dec | L18: - | M18: - | N18: - | O18: -
K19: Annual | L19: =AVERAGE(L7:L18) ->  | M19: =MAX(M7:M18) -> 0 | N19: =AVERAGE(N7:N18) ->  | O19: =MAX(O7:O18) -> 0
A48: Comments :

Sheet HF
A1: =+'Cover Page'!$B$11 -> Annual Performance Report 2021 | E1: =+'Cover Page'!$B$15 -> Hull Energy Production Facility
A3: Monitoring of Hydrogen Fluoride emissions | D3: Whole Installation | J3: =+A3 -> Monitoring of Hydrogen Fluoride emissions | N3: Per Combustion Line
A5: mg/Nm3 | B5: 1/2 Hourly Reference Periods | E5: Daily Reference Periods
A6: =+'Cover Page'!C22 -> 2021 | B6: 1/2 hourly HF ELV | C6: Monthly 1/2 hourly mean | D6: Highest 1/2 hourly maximum | E6: Daily HF ELV | F6: Monthly daily mean | G6: Highest daily maximum | J6: =+A6 -> 2021 | K6: mg/Nm3 | L6: Monthly 1/2 hourly mean | M6: Monthly 1/2 hourly maximum | N6: Monthly daily mean | O6: Monthly daily maximum
A7: Jan | B7: 6 | C7: =L7 -> - | D7: =M7 -> - | E7: 1.5 | F7: 0.15 | G7: =O7 -> - | J7: A1 | K7: Jan | L7: - | M7: - | N7: - | O7: -
A8: Feb | B8: 6 | C8: =L8 -> - | D8: =M8 -> - | E8: 1.5 | F8: 0.17 | G8: =O8 -> - | K8: Feb | L8: - | M8: - | N8: - | O8: -
A9: Mar | B9: 6 | C9: - | D9: - | E9: 1.5 | F9: 0.28 | G9: - | K9: Mar | L9: - | M9: - | N9: - | O9: -
A10: Apr | B10: 6 | C10: - | D10: - | E10: 1.5 | F10: N/A | G10: - | K10: Apr | L10: - | M10: - | N10: - | O10: -
A11: May | B11: 6 | C11: - | D11: - | E11: 1.5 | F11: N/A | G11: - | K11: May | L11: - | M11: - | N11: - | O11: -
A12: Jun | B12: 6 | C12: - | D12: - | E12: 1.5 | F12: 0.25 | G12: - | K12: Jun | L12: - | M12: - | N12: - | O12: -
A13: Jul | B13: Permit EPR/DP3932RS | C13: - | D13: - | E13: 1.5 | F13: 0.31 | G13: - | K13: Jul | L13: - | M13: - | N13: - | O13: -
A14: Aug | B14: 6 | C14: - | D14: - | E14: 1.5 | F14: 0.24 | G14: - | K14: Aug | L14: - | M14: - | N14: - | O14: -
A15: Sep | B15: 6 | C15: - | D15: - | E15: 1.5 | F15: 0.17 | G15: - | K15: Sep | L15: - | M15: - | N15: - | O15: -
A16: Oct | B16: 6 | C16: - | D16: - | E16: 1.5 | F16: 0.38 | G16: - | K16: Oct | L16: - | M16: - | N16: - | O16: -
A17: Nov | B17: 6 | C17: - | D17: - | E17: 1.5 | F17: N/A | G17: - | K17: Nov | L17: - | M17: - | N17: - | O17: -
A18: Dec | B18: 6 | C18: - | D18: - | E18: 1.5 | F18: N/A | G18: - | K18: Dec | L18: - | M18: - | N18: - | O18: -
K19: Annual | L19: =AVERAGE(L7:L18) ->  | M19: =MAX(M7:M18) -> 0 | N19: =AVERAGE(N7:N18) ->  | O19: =MAX(O7:O18) -> 0
A48: Comments :

Sheet SO2
A1: =+'Cover Page'!$B$11 -> Annual Performance Report 2021 | E1: =+'Cover Page'!$B$15 -> Hull Energy Production Facility
A3: Monitoring of Sulphur dioxide emissions | D3: Whole Installation | J3: =+A3 -> Monitoring of Sulphur dioxide emissions | N3: Per Combustion Line
A5: mg/Nm3 | B5: 1/2 Hourly Reference Periods | E5: Daily Reference Periods
A6: =+'Cover Page'!C22 -> 2021 | B6: 1/2 hourly SO2 ELV | C6: Monthly 1/2 hourly mean | D6: Highest 1/2 hourly maximum | E6: Daily SO2 ELV | F6: Monthly daily mean | G6: Highest daily maximum | J6: =+A6 -> 2021 | K6: mg/Nm3 | L6: Monthly 1/2 hourly mean | M6: Monthly 1/2 hourly maximum | N6: Monthly daily mean | O6: Monthly daily maximum
A7: Jan | B7: 300 | C7: =L7 -> - | D7: =M7 -> - | E7: 75 | F7: 7.44 | G7: =O7 -> - | J7: A1 | K7: Jan | L7: - | M7: - | N7: - | O7: -
A8: Feb | B8: 300 | C8: =L8 -> - | D8: =M8 -> - | E8: 75 | F8: 7.38 | G8: =O8 -> - | K8: Feb | L8: - | M8: - | N8: - | O8: -
A9: Mar | B9: 300 | C9: - | D9: - | E9: 75 | F9: 9.05 | G9: - | K9: Mar | L9: - | M9: - | N9: - | O9: -
A10: Apr | B10: 300 | C10: - | D10: - | E10: 75 | F10: N/A | G10: - | K10: Apr | L10: - | M10: - | N10: - | O10: -
A11: May | B11: 300 | C11: - | D11: - | E11: 75 | F11: N/A | G11: - | K11: May | L11: - | M11: - | N11: - | O11: -
A12: Jun | B12: 300 | C12: - | D12: - | E12: 75 | F12: 10.03 | G12: - | K12: Jun | L12: - | M12: - | N12: - | O12: -
A13: Jul | B13: Permit EPR/DP3932RS | C13: - | D13: - | E13: 75 | F13: 9.28 | G13: - | K13: Jul | L13: - | M13: - | N13: - | O13: -
A14: Aug | B14: 300 | C14: - | D14: - | E14: 75 | F14: 9.7 | G14: - | K14: Aug | L14: - | M14: - | N14: - | O14: -
A15: Sep | B15: 300 | C15: - | D15: - | E15: 75 | F15: 9.22 | G15: - | K15: Sep | L15: - | M15: - | N15: - | O15: -
A16: Oct | B16: 300 | C16: - | D16: - | E16: 75 | F16: 9.39 | G16: - | K16: Oct | L16: - | M16: - | N16: - | O16: -
A17: Nov | B17: 300 | C17: - | D17: - | E17: 75 | F17: N/A | G17: - | K17: Nov | L17: - | M17: - | N17: - | O17: -
A18: Dec | B18: 300 | C18: - | D18: - | E18: 75 | F18: N/A | G18: - | K18: Dec | L18: - | M18: - | N18: - | O18: -
K19: Annual | L19: =AVERAGE(L7:L18) ->  | M19: =MAX(M7:M18) -> 0 | N19: =AVERAGE(N7:N18) ->  | O19: =MAX(O7:O18) -> 0
A48: Comments :

Sheet NOx
A1: =+'Cover Page'!$B$11 -> Annual Performance Report 2021 | E1: =+'Cover Page'!$B$15 -> Hull Energy Production Facility
A3: Monitoring of Oxides of Nitrogen emissions | D3: Whole Installation | J3: =+A3 -> Monitoring of Oxides of Nitrogen emissions | N3: Per Combustion Line
A5: mg/Nm3 | B5: 1/2 Hourly Reference Periods | E5: Daily Reference Periods
A6: =+'Cover Page'!C22 -> 2021 | B6: 1/2 hourly NOx ELV | C6: Monthly 1/2 hourly mean | D6: Highest 1/2 hourly maximum | E6: Daily NOx ELV | F6: Monthly daily mean | G6: Highest daily maximum | J6: =+A6 -> 2021 | K6: mg/Nm3 | L6: Monthly 1/2 hourly mean | M6: Monthly 1/2 hourly maximum | N6: Monthly daily mean | O6: Monthly daily maximum
A7: Jan | B7: 600 | C7: =L7 -> - | D7: =M7 -> - | E7: 300 | F7: 150.37 | J7: A1 | K7: Jan | L7: - | M7: - | N7: - | O7: -
A8: Feb | B8: 600 | C8: =L8 -> - | D8: =M8 -> - | E8: 300 | F8: 161.13 | K8: Feb | L8: - | M8: - | N8: - | O8: -
A9: Mar | B9: 600 | C9: - | D9: - | E9: 300 | F9: 216.52 | K9: Mar | L9: - | M9: - | N9: - | O9: -
A10: Apr | B10: 600 | C10: - | D10: - | E10: 300 | F10: N/A | K10: Apr | L10: - | M10: - | N10: - | O10: -
A11: May | B11: 600 | C11: - | D11: - | E11: 300 | F11: N/A | K11: May | L11: - | M11: - | N11: - | O11: -
A12: Jun | B12: 600 | C12: - | D12: - | E12: 300 | F12: 205.57 | K12: Jun | L12: - | M12: - | N12: - | O12: -
A13: Jul | B13: Permit EPR/DP3932RS | C13: - | D13: - | E13: 300 | F13: 287.89 | K13: Jul | L13: - | M13: - | N13: - | O13: -
A14: Aug | B14: 600 | C14: - | D14: - | E14: 300 | F14: 199.29 | K14: Aug | L14: - | M14: - | N14: - | O14: -
A15: Sep | B15: 600 | C15: - | D15: - | E15: 300 | F15: 204.12 | K15: Sep | L15: - | M15: - | N15: - | O15: -
A16: Oct | B16: 600 | C16: - | D16: - | E16: 300 | F16: 200.45 | K16: Oct | L16: - | M16: - | N16: - | O16: -
A17: Nov | B17: 600 | C17: - | D17: - | E17: 300 | F17: N/A | K17: Nov | L17: - | M17: - | N17: - | O17: -
A18: Dec | B18: 600 | C18: - | D18: - | E18: 300 | F18: N/A | K18: Dec | L18: - | M18: - | N18: - | O18: -
K19: Annual | L19: =AVERAGE(L7:L18) ->  | M19: =MAX(M7:M18) -> 0 | N19: =AVERAGE(N7:N18) ->  | O19: =MAX(O7:O18) -> 0
A48: Comments :

Sheet TOC
A1: =+'Cover Page'!$B$11 -> Annual Performance Report 2021 | E1: =+'Cover Page'!$B$15 -> Hull Energy Production Facility
A3: Monitoring of Total organic carbon emissions | D3: Whole Installation | J3: =+A3 -> Monitoring of Total organic carbon emissions | N3: Per Combustion Line
A5: mg/Nm3 | B5: 1/2 Hourly Reference Periods | E5: Daily Reference Periods
A6: =+'Cover Page'!C22 -> 2021 | B6: 1/2 hourly TOC ELV | C6: Monthly 1/2 hourly mean | D6: Highest 1/2 hourly maximum | E6: Daily TOC ELV | F6: Monthly daily mean | G6: Highest daily maximum | J6: =+A6 -> 2021 | K6: mg/Nm3 | L6: Monthly 1/2 hourly mean | M6: Monthly 1/2 hourly maximum | N6: Monthly daily mean | O6: Monthly daily maximum
A7: Jan | B7: 30 | C7: =L7 -> - | D7: =M7 -> - | E7: 15 | F7: 0.05 | G7: =O7 -> - | J7: A1 | K7: Jan | L7: - | M7: - | N7: - | O7: -
A8: Feb | B8: 30 | C8: =L8 -> - | D8: =M8 -> - | E8: 15 | F8: -0.01 | G8: =O8 -> - | K8: Feb | L8: - | M8: - | N8: - | O8: -
A9: Mar | B9: 30 | C9: - | D9: - | E9: 15 | F9: 0.5 | G9: - | K9: Mar | L9: - | M9: - | N9: - | O9: -
A10: Apr | B10: 30 | C10: - | D10: - | E10: 15 | F10: N/A | G10: - | K10: Apr | L10: - | M10: - | N10: - | O10: -
A11: May | B11: 30 | C11: - | D11: - | E11: 15 | F11: N/A | G11: - | K11: May | L11: - | M11: - | N11: - | O11: -
A12: Jun | B12: 30 | C12: - | D12: - | E12: 15 | F12: -0.99 | G12: - | K12: Jun | L12: - | M12: - | N12: - | O12: -
A13: Jul | B13: Permit EPR/DP3932RS | C13: - | D13: - | E13: 15 | F13: -0.27 | G13: - | K13: Jul | L13: - | M13: - | N13: - | O13: -
A14: Aug | B14: 30 | C14: - | D14: - | E14: 15 | F14: 0.8 | G14: - | K14: Aug | L14: - | M14: - | N14: - | O14: -
A15: Sep | B15: 30 | C15: - | D15: - | E15: 15 | F15: 0.78 | G15: - | K15: Sep | L15: - | M15: - | N15: - | O15: -
A16: Oct | B16: 30 | C16: - | D16: - | E16: 15 | F16: 0.72 | G16: - | K16: Oct | L16: - | M16: - | N16: - | O16: -
A17: Nov | B17: 30 | C17: - | D17: - | E17: 15 | F17: N/A | G17: - | K17: Nov | L17: - | M17: - | N17: - | O17: -
A18: Dec | B18: 30 | C18: - | D18: - | E18: 15 | F18: N/A | G18: - | K18: Dec | L18: - | M18: - | N18: - | O18: -
K19: Annual | L19: =AVERAGE(L7:L18) ->  | M19: =MAX(M7:M18) -> 0 | N19: =AVERAGE(N7:N18) ->  | O19: =MAX(O7:O18) -> 0
A48: Comments :

Sheet Particulates
A1: =+'Cover Page'!$B$11 -> Annual Performance Report 2021 | E1: =+'Cover Page'!$B$15 -> Hull Energy Production Facility
A3: Monitoring of Particulate matter emissions | D3: Whole Installation | J3: =+A3 -> Monitoring of Particulate matter emissions | N3: Per Combustion Line
A5: mg/Nm3 | B5: 1/2 Hourly Reference Periods | E5: Daily Reference Periods
A6: =+'Cover Page'!C22 -> 2021 | B6: 1/2 hourly PM ELV | C6: Monthly 1/2 hourly mean | D6: Highest 1/2 hourly maximum | E6: Daily PM ELV | F6: Monthly daily mean | G6: Highest daily maximum | J6: =+A6 -> 2021 | K6: mg/Nm3 | L6: Monthly 1/2 hourly mean | M6: Monthly 1/2 hourly maximum | N6: Monthly daily mean | O6: Monthly daily maximum
A7: Jan | B7: 45 | C7: =L7 -> - | D7: =M7 -> - | E7: 15 | F7: 0.29 | G7: =O7 -> - | J7: A1 | K7: Jan | L7: - | M7: - | N7: - | O7: -
A8: Feb | B8: 45 | C8: =L8 -> - | D8: =M8 -> - | E8: 15 | F8: 2.21 | G8: =O8 -> - | K8: Feb | L8: - | M8: - | N8: - | O8: -
A9: Mar | B9: 45 | C9: - | D9: - | E9: 15 | F9: 0.35 | G9: - | K9: Mar | L9: - | M9: - | N9: - | O9: -
A10: Apr | B10: 45 | C10: - | D10: - | E10: 15 | F10: N/A | G10: - | K10: Apr | L10: - | M10: - | N10: - | O10: -
A11: May | B11: 45 | C11: - | D11: - | E11: 15 | F11: N/A | G11: - | K11: May | L11: - | M11: - | N11: - | O11: -
A12: Jun | B12: 45 | C12: - | D12: - | E12: 15 | F12: 0.27 | G12: - | K12: Jun | L12: - | M12: - | N12: - | O12: -
A13: Jul | B13: Permit EPR/DP3932RS | C13: - | D13: - | E13: 15 | F13: 0.32 | G13: - | K13: Jul | L13: - | M13: - | N13: - | O13: -
A14: Aug | B14: 45 | C14: - | D14: - | E14: 15 | F14: 0.34 | G14: - | K14: Aug | L14: - | M14: - | N14: - | O14: -
A15: Sep | B15: 45 | C15: - | D15: - | E15: 15 | F15: 0.34 | G15: - | K15: Sep | L15: - | M15: - | N15: - | O15: -
A16: Oct | B16: 45 | C16: - | D16: - | E16: 15 | F16: 0.32 | G16: - | K16: Oct | L16: - | M16: - | N16: - | O16: -
A17: Nov | B17: 45 | C17: - | D17: - | E17: 15 | F17: N/A | G17: - | K17: Nov | L17: - | M17: - | N17: - | O17: -
A18: Dec | B18: 45 | C18: - | D18: - | E18: 15 | F18: N/A | G18: - | K18: Dec | L18: - | M18: - | N18: - | O18: -
K19: Annual | L19: =AVERAGE(L7:L18) ->  | M19: =MAX(M7:M18) -> 0 | N19: =AVERAGE(N7:N18) ->  | O19: =MAX(O7:O18) -> 0
A48: Comments :

Sheet CO
A1: =+'Cover Page'!$B$11 -> Annual Performance Report 2021 | E1: =+'Cover Page'!$B$15 -> Hull Energy Production Facility
A3: Monitoring of Carbon Monoxide (half hourly) | D3: Whole Installation | J3: =+A3 -> Monitoring of Carbon Monoxide (half hourly) | N3: Per Combustion Line
A5: mg/Nm3 | B5: 1/2 Hourly Reference Periods | E5: Daily Reference Periods
A6: =+'Cover Page'!C22 -> 2021 | B6: 1/2 hourly CO ELV | C6: Monthly 1/2 hourly mean | D6: Highest 1/2 hourly maximum | E6: Daily CO ELV | F6: Monthly daily mean | G6: Highest daily maximum | J6: =+A6 -> 2021 | K6: mg/Nm3 | L6: Monthly 1/2 hourly mean | M6: Monthly 1/2 hourly maximum | N6: Monthly daily mean | O6: Monthly daily maximum
A7: Jan | B7: 150 | C7: =L7 -> - | D7: =M7 -> - | E7: 75 | F7: 21.32 | G7: =O7 -> - | J7: A1 | K7: Jan | L7: - | M7: - | N7: - | O7: -
A8: Feb | B8: 150 | C8: =L8 -> - | D8: =M8 -> - | E8: 75 | F8: 21.02 | G8: =O8 -> - | K8: Feb | L8: - | M8: - | N8: - | O8: -
A9: Mar | B9: 150 | C9: - | D9: - | E9: 75 | F9: 22.26 | G9: - | K9: Mar | L9: - | M9: - | N9: - | O9: -
A10: Apr | B10: 150 | C10: - | D10: - | E10: 75 | F10: N/A | G10: - | K10: Apr | L10: - | M10: - | N10: - | O10: -
A11: May | B11: 150 | C11: - | D11: - | E11: 75 | F11: N/A | G11: - | K11: May | L11: - | M11: - | N11: - | O11: -
A12: Jun | B12: 150 | C12: - | D12: - | E12: 75 | F12: 32.29 | G12: - | K12: Jun | L12: - | M12: - | N12: - | O12: -
A13: Jul | B13: Permit EPR/DP3932RS | C13: - | D13: - | E13: 75 | F13: 34.42 | G13: - | K13: Jul | L13: - | M13: - | N13: - | O13: -
A14: Aug | B14: 150 | C14: - | D14: - | E14: 75 | F14: 25.5 | G14: - | K14: Aug | L14: - | M14: - | N14: - | O14: -
A15: Sep | B15: 150 | C15: - | D15: - | E15: 75 | F15: 25.18 | G15: - | K15: Sep | L15: - | M15: - | N15: - | O15: -
A16: Oct | B16: 150 | C16: - | D16: - | E16: 75 | F16: 28.37 | G16: - | K16: Oct | L16: - | M16: - | N16: - | O16: -
A17: Nov | B17: 150 | C17: - | D17: - | E17: 75 | F17: N/A | G17: - | K17: Nov | L17: - | M17: - | N17: - | O17: -
A18: Dec | B18: 150 | C18: - | D18: - | E18: 75 | F18: N/A | G18: - | K18: Dec | L18: - | M18: - | N18: - | O18: -
K19: Annual | L19: =AVERAGE(L7:L18) ->  | M19: =MAX(M7:M18) -> 0 | N19: =AVERAGE(N7:N18) ->  | O19: =MAX(O7:O18) -> 0
A48: Comments :

Sheet NH3
A1: =+'Cover Page'!$B$11 -> Annual Performance Report 2021 | B1: =+'Cover Page'!$B$15 -> Hull Energy Production Facility
A3: Monitoring of Ammonia emissions | G3: =+A3 -> Monitoring of Ammonia emissions | I3: Per Combustion Line
A5: mg/Nm3 | B5: Daily Reference Periods
A6: =+'Cover Page'!C22 -> 2021 | B6: Daily NH3 ELV | C6: Monthly daily mean | D6: Highest daily maximum | G6: =+A6 -> 2021 | H6: mg/Nm3 | I6: Monthly daily mean | J6: Monthly daily maximum
A7: Jan | B7: 5 | C7: 0.17 | D7: =J7 -> - | G7: A1 | H7: Jan | I7: - | J7: -
A8: Feb | B8: 5 | C8: 0.63 | D8: =J8 -> - | H8: Feb | I8: - | J8: -
A9: Mar | B9: 5 | C9: 0.18 | D9: - | H9: Mar | I9: - | J9: -
A10: Apr | B10: 5 | C10: N/A | D10: - | H10: Apr | I10: - | J10: -
A11: May | B11: 5 | C11: N/A | D11: - | H11: May | I11: - | J11: -
A12: Jun | B12: 5 | C12: 0.92 | D12: - | H12: Jun | I12: - | J12: -
A13: Jul | B13: Permit EPR/DP3932RS | C13: 0 | D13: - | H13: Jul | I13: - | J13: -
A14: Aug | B14: 5 | C14: 0.21 | D14: - | H14: Aug | I14: - | J14: -
A15: Sep | B15: 5 | C15: 0.51 | D15: - | H15: Sep | I15: - | J15: -
A16: Oct | B16: 5 | C16: 0.52 | D16: - | H16: Oct | I16: - | J16: -
A17: Nov | B17: 5 | C17: N/A | D17: - | H17: Nov | I17: - | J17: -
A18: Dec | B18: 5 | C18: N/A | D18: - | H18: Dec | I18: - | J18: -
H19: Annual | I19: =AVERAGE(I7:I18) ->  | J19: =MAX(J7:J18) -> 0
A48: Comments :
